[Event "FRA-ch Youth U20 2018"]
[Site "Agen"]
[Date "2018.04.15"]
[Round "1"]
[White "Aubert, Laurane"]
[Black "Bartels, Karina"]
[Result "1-0"]
[ECO "B23"]
[WhiteElo "1952"]
[BlackElo "1702"]
[Annotator "NA RC"]
[PlyCount "67"]
[EventDate "2018.??.??"]
[EventType "swiss"]
[EventCountry "FRA"]
[SourceTitle "playchess.com"]
[Source "ChessBase"]
[SourceQuality "1"]
[TimeControl "5400+30"]

1. e4 {[%emt 0:00:00]} c5 {[%emt 0:00:05]} 2. Nc3 {[%emt 0:00:00]} a6 {[%emt 0:00:19]} 3. g3 {[%emt 0:00:47]} b5 {[%emt 0:00:06]} 4. Bg2 {[%emt 0:00:06]} Bb7 {[%emt 0:00:16]} 5. a4 {[%emt 0:01:04]} b4 {[%emt 0:02:15]} 6. Nd5 {[%emt 0:00:08]} e6 {[%emt 0:01:36]} 7. Ne3 {[%emt 0:00:09]} Nf6 {[%emt 0:15:47]} 8. d3 {[%emt 0:00:25]} d6 {[%emt 0:00:36]} 9. Ne2 {[%emt 0:06:14]} Nc6 {[%emt 0:04:34]} 10. O-O {[%emt 0:02:22]} Be7 $11 {[%emt 0:01:53]} 11. Nf4 {[%emt 0:09:52]} O-O {[%emt 0:02:02]} 12. Nc4 {[%emt 0:09:37]} d5 {[%emt 0:11:11]} 13. exd5 {[%emt 0:00:52]} exd5 {[%emt 0:01:17]} 14. Ne3 {[%emt 0:01:04]} Na5 {[%emt 0:20:47]} 15. Re1 {[%emt 0:08:33]} Re8 {[%emt 0:00:46]} 16. d4 {[%emt 0:18:27]} c4 {[%emt 0:02:29]} 17. Bd2 {[%emt 0:06:00]} Bf8 {[%emt 0:08:09]} 18. Qf3 {[%emt 0:09:43]} Ne4 {[%emt 0:04:48]} 19. Rad1 {[%emt 0:02:58]} Nc6 {[%emt 0:11:11]} 20. Bc1 {[%emt 0:01:00]} Nf6 {[%emt 0:06:15]} 21. Nfxd5 {[%emt 0:02:49]} Nxd5 {[%emt 0:00:18]} 22. Qxd5 {[%emt 0:00:24]} Na5 {[%emt 0:02:51]} 23. Qxd8 {[%emt 0:04:33]} Raxd8 {[%emt 0:00:05]} 24. Bxb7 {[%emt 0:00:19]} Nxb7 {[%emt 0:00:07]} 25. Nxc4 {[%emt 0:02:40]} Rxd4 {[%emt 0:00:47]} 26. b3 {[%emt 0:02:10]} Rxd1 {[%emt 0:01:39]} 27. Rxd1 {[%emt 0:00:06]} Re2 {[%emt 0:00:08]} 28. Ne3 {[%emt 0:00:39]} Bc5 {[%emt 0:00:49]} 29. Kf1 {[%emt 0:00:20]} Bxe3 {[%emt 0:01:00]} 30. Kxe2 {[%emt 0:00:09]} Bb6 {[%emt 0:00:12]} 31. Be3 {[%emt 0:00:45]} Bxe3 {[%emt 0:00:58]} 32. Kxe3 {[%emt 0:00:09]} Kf8 {[%emt 0:00:16]} 33. Rd4 {[%emt 0:01:48]} a5 {[%emt 0:00:25]} 34. Rd7 {[%emt 0:00:17]} 1-0

[Event "FRA-ch Youth U20 2018"]
[Site "Agen"]
[Date "2018.04.15"]
[Round "1"]
[White "Leriche, Ines"]
[Black "Wojnowski, Natalia"]
[Result "1-0"]
[ECO "E90"]
[WhiteElo "1913"]
[BlackElo "1426"]
[Annotator "NA RC"]
[PlyCount "53"]
[EventDate "2018.??.??"]
[EventType "swiss"]
[EventCountry "FRA"]
[SourceTitle "playchess.com"]
[Source "ChessBase"]
[SourceQuality "1"]
[TimeControl "5400+30"]

1. d4 {[%emt 0:00:00]} Nf6 {[%emt 0:00:34]} 2. c4 {[%emt 0:00:00]} g6 {[%emt 0:00:25]} 3. Nc3 {[%emt 0:00:10]} Bg7 {[%emt 0:00:24]} 4. e4 {[%emt 0:00:29]} d6 {[%emt 0:00:14]} 5. Nf3 {[%emt 0:02:03]} O-O {[%emt 0:01:46]} 6. h3 {[%emt 0:00:29]} e5 {[%emt 0:01:36]} 7. d5 {[%emt 0:00:43]} a5 {[%emt 0:04:56]} 8. Bg5 {[%emt 0:00:21]} Na6 {[%emt 0:00:44]} 9. Be2 {[%emt 0:00:35]} Qe8 {[%emt 0:03:05]} 10. Nd2 {[%emt 0:03:31]} h6 {[%emt 0:08:30] LiveBook: 13 Games} 11. Be3 {[%emt 0:00:21]} Nh7 {[%emt 0:00:54]} 12. g4 {[%emt 0:21:26]} f5 {[%emt 0:04:47]} 13. gxf5 {[%emt 0:04:23]} gxf5 {[%emt 0:00:55]} 14. exf5 {[%emt 0:01:46]} Bxf5 {[%emt 0:00:40]} 15. Rg1 {[%emt 0:01:45]} Kh8 {[%emt 0:00:44]} 16. Bh5 {[%emt 0:32:29]} Qe7 {[%emt 0:06:22]} 17. Bg6 {[%emt 0:01:22]} Nb4 {[%emt 0:09:26]} 18. Bxf5 {[%emt 0:02:54]} Rxf5 {[%emt 0:00:11]} 19. Nde4 {[%emt 0:01:50]} Raf8 $16 {[%emt 0:04:01]} 20. Qd2 {[%emt 0:03:21]} Qh4 {[%emt 0:01:05]} 21. a3 {[%emt 0:03:31]} Na6 {[%emt 0:01:36]} 22. O-O-O {[%emt 0:01:19]} Rf3 {[%emt 0:02:56]} 23. Rg4 {[%emt 0:02:51]} Qxh3 {[%emt 0:04:52]} 24. Rdg1 {[%emt 0:00:32]} R3f7 {[%emt 0:00:27]} 25. R4g3 {[%emt 0:02:49]} Qh4 {[%emt 0:02:07]} 26. Rg6 {[%emt 0:04:18]} h5 {[%emt 0:02:47]} 27. Qd1 {[%emt 0:01:27]} 1-0

[Event "FRA-ch Youth U20 2018"]
[Site "Agen"]
[Date "2018.04.15"]
[Round "1"]
[White "Aouachria, Marwa"]
[Black "Retailleau, Elise"]
[Result "1-0"]
[ECO "B32"]
[WhiteElo "1687"]
[BlackElo "1932"]
[Annotator "NA RC"]
[PlyCount "113"]
[EventDate "2018.??.??"]
[EventType "swiss"]
[EventCountry "FRA"]
[SourceTitle "playchess.com"]
[Source "ChessBase"]
[SourceQuality "1"]
[TimeControl "5400+30"]

1. e4 {[%emt 0:00:00]} c5 {[%emt 0:00:19]} 2. Nf3 {[%emt 0:00:00]} Nc6 {[%emt 0:00:14]} 3. d4 {[%emt 0:00:00]} cxd4 {[%emt 0:00:25]} 4. Nxd4 {[%emt 0:00:00]} e5 {[%emt 0:00:17]} 5. Nb5 {[%emt 0:00:11]} d6 {[%emt 0:00:28]} 6. N1c3 {[%emt 0:00:38]} a6 {[%emt 0:00:43]} 7. Na3 {[%emt 0:00:06]} b5 {[%emt 0:00:26]} 8. Nd5 {[%emt 0:01:42]} Nge7 {[%emt 0:00:30]} 9. Bg5 {[%emt 0:06:52]} h6 {[%emt 0:03:05]} 10. Bxe7 {[%emt 0:03:22]} Bxe7 {[%emt 0:02:14] B32: Sicilian: Löwenthal and Kalashnikov Variations} (10... Nxe7 11. c3 Nxd5 12. exd5 Be7 13. Nc2 Bd7 14. Be2 O-O 15. O-O Qb6 16. Kh1 Bg5 17. Nb4 a5 18. Nc6 Bxc6 19. dxc6 Qxc6 {½-½ (30) Khodashenas,M (2404)-Gholami,A (2473) Baghdad 2018}) 11. c3 {[%emt 0:00:36]} O-O {[%emt 0:02:11]} 12. Nc2 {[%emt 0:05:37]} f5 {[%emt 0:06:18]} 13. Nde3 $146 {[%emt 0:07:36]} ({Predecessor:} 13. exf5 Bxf5 14. Nce3 Be6 15. Bd3 Bg5 16. Be4 Bxe3 17. Nxe3 Qh4 18. Qc2 {½-½ (55) Bednay,B (2253)-Horvath,G (2283) Hungary 2005}) 13... Kh8 {[%emt 0:13:47]} 14. exf5 {[%emt 0:03:56]} Bh4 {[%emt 0:15:30]} 15. g3 {[%emt 0:10:42]} Bg5 {[%emt 0:04:50]} 16. Bg2 {[%emt 0:00:28]} Bb7 {[%emt 0:04:36]} 17. h4 {[%emt 0:14:09]} Be7 {[%emt 0:07:07]} 18. Qh5 {[%emt 0:11:57]} Qd7 {[%emt 0:10:37]} 19. g4 {[%emt 0:08:48]} Na5 {[%emt 0:04:06]} 20. g5 {[%emt 0:06:01]} Bxg2 {[%emt 0:02:31]} 21. gxh6 {[%emt 0:01:00]} g6 {[%emt 0:01:18]} 22. fxg6 {[%emt 0:01:17]} Bf3 {[%emt 0:02:06]} 23. g7+ {[%emt 0:02:16]} Kh7 {[%emt 0:00:46]} 24. g8=Q+ {[%emt 0:02:38]} Rxg8 {[%emt 0:00:23]} 25. Qxf3 {[%emt 0:01:01]} Raf8 {[%emt 0:05:20]} 26. Qe4+ {[%emt 0:01:29]} Kh8 {[%emt 0:00:38]} 27. O-O-O {[%emt 0:02:26]} Qe6 {[%emt 0:01:29]} 28. Nd5 {[%emt 0:06:54]} Rxf2 {[%emt 0:02:45]} 29. Rdg1 {[%emt 0:01:17]} Qxh6+ {[%emt 0:04:58]} 30. Qe3 {[%emt 0:01:25]} Qxe3+ {[%emt 0:01:49]} 31. Ncxe3 {[%emt 0:00:02]} Rxg1+ {[%emt 0:01:50]} 32. Rxg1 {[%emt 0:00:02]} Bf8 {[%emt 0:00:33]} 33. Ng4 {[%emt 0:00:46]} Re2 {[%emt 0:01:52]} 34. Rf1 {[%emt 0:00:52]} Bg7 {[%emt 0:00:37]} 35. Rf2 {[%emt 0:00:40]} Rxf2 {[%emt 0:00:48]} 36. Nxf2 {[%emt 0:00:03]} Kh7 {[%emt 0:00:11]} 37. Ne4 {[%emt 0:00:17]} Bf8 {[%emt 0:00:39]} 38. Nc7 {[%emt 0:01:09]} Kg6 {[%emt 0:00:33]} 39. Nxa6 {[%emt 0:00:40]} d5 {[%emt 0:00:33]} 40. Nf2 {[%emt 0:00:22]} Bd6 {[%emt 0:00:17]} 41. Kc2 {[%emt 0:00:41]} Kh5 {[%emt 0:00:23]} 42. Nd3 {[%emt 0:00:15]} e4 {[%emt 0:00:20]} 43. Ndb4 {[%emt 0:00:16]} Kxh4 {[%emt 0:01:04]} 44. Nxd5 {[%emt 0:00:06]} Kg3 {[%emt 0:00:16]} 45. b3 {[%emt 0:00:29]} Kf2 {[%emt 0:00:12]} 46. Kd2 {[%emt 0:00:15]} Bf8 {[%emt 0:00:32]} 47. Nac7 {[%emt 0:00:37]} b4 {[%emt 0:00:20]} 48. cxb4 {[%emt 0:00:24]} Nc6 {[%emt 0:01:02]} 49. b5 {[%emt 0:00:24]} Bh6+ {[%emt 0:00:40]} 50. Kd1 {[%emt 0:00:34]} Nb8 {[%emt 0:00:17]} 51. a4 {[%emt 0:01:10]} e3 {[%emt 0:00:31]} 52. Nc3 {[%emt 0:00:20]} Bg7 {[%emt 0:00:31]} 53. Ne2 {[%emt 0:00:11]} Be5 {[%emt 0:00:27]} 54. Nd5 $18 {[%emt 0:00:35]} Nd7 {[%emt 0:00:42]} 55. b4 {[%emt 0:00:27]} Kf3 {[%emt 0:00:16]} 56. a5 {[%emt 0:00:26]} Ke4 {[%emt 0:00:31]} 57. Ne7 {[%emt 0:00:46]} 1-0

[Event "FRA-ch Youth U20 2018"]
[Site "Agen"]
[Date "2018.04.16"]
[Round "2"]
[White "Retailleau, Elise"]
[Black "Bartels, Karina"]
[Result "1-0"]
[ECO "B23"]
[WhiteElo "1932"]
[BlackElo "1702"]
[Annotator "NA RC"]
[PlyCount "61"]
[EventDate "2018.??.??"]
[EventType "swiss"]
[EventCountry "FRA"]
[SourceTitle "playchess.com"]
[Source "ChessBase"]
[SourceQuality "1"]
[TimeControl "5400+30"]

1. e4 {[%emt 0:00:37]} c5 {[%emt 0:00:04]} 2. Nc3 {[%emt 0:01:08]} a6 {[%emt 0:00:48]} 3. Nf3 {[%emt 0:01:20]} b5 {[%emt 0:00:17]} 4. d4 {[%emt 0:03:42]} cxd4 {[%emt 0:07:01]} 5. Nxd4 {[%emt 0:01:30]} Bb7 {[%emt 0:01:05]} 6. Bd3 {[%emt 0:03:43] LiveBook: 130 Games} e6 {[%emt 0:12:21]} ({Find the theoretical novelty and annotate with similar games:} 6... d6 $146 7. Bg5 g6 8. Nd5 Bg7 9. c3 h6 10. Bh4 g5 11. Bg3 e6 12. Nb4 Nf6 13. Qe2 Qb6 14. h4 {½-½ (33) Antipov,M (2586)-Iturrizaga Bonelli,E (2671) Dubai 2017}) 7. O-O {[%emt 0:02:34]} Nf6 {[%emt 0:01:17]} 8. e5 {[%emt 0:06:13]} b4 {[%emt 0:09:33]} 9. exf6 {[%emt 0:10:20]} bxc3 {[%emt 0:00:54]} 10. fxg7 {[%emt 0:00:47]} Bxg7 {[%emt 0:08:16]} 11. bxc3 {[%emt 0:03:30]} Qh4 {[%emt 0:16:04]} 12. Rb1 {[%emt 0:08:16]} Bd5 {[%emt 0:07:04]} 13. Re1 {[%emt 0:07:32]} Bxd4 {[%emt 0:09:30]} 14. cxd4 {[%emt 0:01:40]} Rg8 {[%emt 0:01:00]} 15. Bf1 {[%emt 0:01:19]} Bxg2 {[%emt 0:01:24]} 16. Bxg2 {[%emt 0:05:02]} Qh3 {[%emt 0:00:44]} 17. Rxe6+ {[%emt 0:01:33]} fxe6 {[%emt 0:04:33]} 18. Qf1 {[%emt 0:01:52]} Nc6 {[%emt 0:01:17]} 19. Kh1 {[%emt 0:00:52]} Qg4 {[%emt 0:00:28]} 20. d5 {[%emt 0:01:09]} Rb8 {[%emt 0:04:52]} 21. Rxb8+ {[%emt 0:08:17]} Nxb8 {[%emt 0:00:01]} 22. h3 {[%emt 0:02:37]} Qg6 {[%emt 0:03:27]} 23. Bf4 {[%emt 0:03:29]} Kf7 {[%emt 0:00:29]} 24. c4 {[%emt 0:01:07]} Qf5 {[%emt 0:01:58]} 25. Bg3 {[%emt 0:03:04]} Re8 {[%emt 0:02:52]} 26. Qe2 {[%emt 0:01:44]} e5 {[%emt 0:01:03]} 27. Kh2 {[%emt 0:02:02]} Kg7 {[%emt 0:00:52]} 28. Be4 {[%emt 0:02:26]} Qg5 {[%emt 0:00:36]} 29. h4 {[%emt 0:00:41]} Qe7 {[%emt 0:01:46]} 30. Qh5 {[%emt 0:01:37]} Kh8 {[%emt 0:01:28]} 31. d6 {[%emt 0:00:39]} 1-0

[Event "FRA-ch Youth U20 2018"]
[Site "Agen"]
[Date "2018.04.16"]
[Round "2"]
[White "Aouachria, Marwa"]
[Black "Aubert, Laurane"]
[Result "0-1"]
[ECO "B40"]
[WhiteElo "1687"]
[BlackElo "1952"]
[Annotator "NA RC"]
[PlyCount "126"]
[EventDate "2018.??.??"]
[EventType "swiss"]
[EventCountry "FRA"]
[SourceTitle "playchess.com"]
[Source "ChessBase"]
[SourceQuality "1"]
[TimeControl "5400+30"]

{[%evp 12,110,18,18,32767,32767,32767,12,33,-18,29,15,25,25,25,31,27,32767,32767,32767,32767,32767,32767,15,18,10,25,23,27,21,80,32767,32767,20,76,79,32767,83,32767,73,32767,32767,73,0,92,94,32767,80,32767,100,156,164,159,22,152,84,220,233,206,242,235,32767,32767,32767,111,56,62,56,35,14,25,8,100,102,117,6,15,0,0,0,0,-51,-32,-47,0,0,0,0,0,0,27,0,0,-25,-12,-191,-26,-53,-24,-174,16]} 1. e4 {[%emt 0:00:00]} c5 {[%emt 0:00:04]} 2. Nf3 {[%emt 0:00:00]} e6 {[%emt 0:00:06]} 3. d4 {[%emt 0:00:00]} cxd4 {[%emt 0:00:04]} 4. Nxd4 {[%emt 0:00:00]} Nf6 {[%emt 0:00:05]} 5. Nc3 {[%emt 0:07:17]} Nc6 {[%emt 0:00:08]} 6. Ndb5 {[%emt 0:04:18]} Bb4 {[%emt 0:00:58]} 7. a3 {[%emt 0:03:05]} Bxc3+ {[%emt 0:00:16]} 8. Nxc3 {[%emt 0:00:04]} d5 {[%emt 0:02:35]} 9. exd5 {[%emt 0:01:41]} exd5 {[%emt 0:02:57]} 10. Bg5 {[%emt 0:04:10]} d4 {[%emt 0:07:23]} ({Better is} 10... O-O 11. Be2 Bf5) 11. Qe2+ {[%emt 0:04:25]} Be6 {[%emt 0:03:33]} 12. Ne4 {[%emt 0:08:21] B45: Sicilian Four Knights} Qa5+ {[%emt 0:01:54] LiveBook: 3 Games} 13. Bd2 {[%emt 0:00:10]} Qe5 {[%emt 0:02:15]} 14. Ng5 {[%emt 0:07:00]} (14. Nxf6+ Qxf6 15. Qe4 Qe5 16. Bd3 Bd5 17. Qxe5+ Nxe5 18. O-O Nxd3 19. cxd3 Kd7 {½-½ (31) Ashwin,J (2436)-Kogan,A (2569) Helsingor 2008}) 14... Bd5 {[%emt 0:06:46]} 15. Qxe5+ {[%emt 0:05:06]} Nxe5 {[%emt 0:00:06]} 16. Bb5+ {[%emt 0:01:45]} Nc6 {[%emt 0:05:08]} 17. O-O $146 {[%emt 0:05:45]} ({Predecessor:} 17. O-O-O O-O-O 18. Bxc6 bxc6 19. Ba5 Rd7 20. Rxd4 {1-0 (41) Sott,P (2211)-Spurny,O (2055) Tatranske Zruby 2009}) 17... O-O {[%emt 0:01:02]} 18. Rfe1 {[%emt 0:08:43]} a6 {[%emt 0:06:33]} 19. Bd3 {[%emt 0:03:49]} Rfe8 {[%emt 0:03:10]} 20. c4 {[%emt 0:05:04]} Be6 {[%emt 0:13:36]} 21. b4 {[%emt 0:12:07]} h6 {[%emt 0:04:57]} 22. Ne4 {[%emt 0:08:27]} (22. Nxe6 $16 Rxe6 23. Rxe6 fxe6 24. Re1) 22... Nxe4 {[%emt 0:08:09]} (22... Ne5 $11 {remains equal.} 23. Nxf6+ gxf6) 23. Rxe4 {[%emt 0:00:10]} Red8 {[%emt 0:02:03]} 24. Re2 {[%emt 0:01:27]} Rac8 {[%emt 0:02:46]} 25. Rc1 {[%emt 0:04:49]} Ne7 $1 $11 {[%emt 0:03:36] keeps the balance.} 26. Re5 {[%emt 0:00:38]} Nc6 {[%emt 0:03:03]} 27. Re2 {[%emt 0:00:13]} ({Better is} 27. Ree1 $16) 27... Nb8 {[%emt 0:01:59]} 28. f4 {[%emt 0:01:04]} Bg4 {[%emt 0:09:59]} 29. Ree1 {[%emt 0:02:13]} Bd7 {[%emt 0:04:50]} 30. f5 {[%emt 0:00:46]} f6 {[%emt 0:00:54]} (30... Ba4 $142) 31. b5 {[%emt 0:00:45]} Be8 {[%emt 0:02:00]} 32. Re7 {[%emt 0:00:59]} ({Better is} 32. Ba5 $16) 32... Nd7 {[%emt 0:00:47]} (32... axb5 $14 33. cxb5 Rxc1+ 34. Bxc1 Nd7) 33. bxa6 {[%emt 0:00:26]} Nc5 {[%emt 0:02:15]} (33... bxa6 $16 34. Ba5 Kf8 35. Bxd8 Rxd8) 34. axb7 {[%emt 0:00:46]} Rb8 {[%emt 0:00:28]} 35. Be2 {[%emt 0:01:20]} ({Much less strong is} 35. Ba5 $6 Rd7 $16) 35... Rxb7 {[%emt 0:00:50]} 36. Rxb7 {[%emt 0:00:14]} Nxb7 {[%emt 0:00:03]} 37. Bf3 {[%emt 0:00:13]} Nc5 {[%emt 0:00:25]} 38. Bd5+ {[%emt 0:01:03]} (38. Bb4 $16 Nd3 39. Rd1) 38... Bf7 $1 {[%emt 0:00:13]} 39. Bxf7+ {[%emt 0:00:24]} Kxf7 {[%emt 0:00:05]} 40. Re1 {[%emt 0:00:35]} Rc8 {[%emt 0:00:29]} 41. Bb4 {[%emt 0:00:36]} Rc7 {[%emt 0:01:24]} (41... Nd3 $1 $11 42. Re7+ Kg8) 42. Rd1 {[%emt 0:00:12]} Nb3 {[%emt 0:01:00]} 43. Rd3 {[%emt 0:00:43]} (43. c5 $16) 43... Nc1 {[%emt 0:00:10]} 44. Rd1 {[%emt 0:00:11]} Rxc4 {[%emt 0:00:21]} 45. Kf1 {[%emt 0:00:53]} Na2 {[%emt 0:00:50]} 46. Bd6 {[%emt 0:00:28]} Nc3 {[%emt 0:00:35]} 47. Rd3 $1 {[%emt 0:00:29]} Ne4 {[%emt 0:00:27]} 48. Bb4 {[%emt 0:00:24]} g6 {[%emt 0:00:37]} 49. fxg6+ {[%emt 0:00:22]} Kxg6 {[%emt 0:00:03]} 50. Ke2 {[%emt 0:00:21]} Kf5 {[%emt 0:00:33]} 51. Rf3+ {[%emt 0:00:52]} ({White should play} 51. Rh3 $1 $14) 51... Ke5 {[%emt 0:00:25]} 52. Rh3 {[%emt 0:00:36]} Rc2+ {[%emt 0:00:27]} 53. Kf1 $2 {[%emt 0:00:11]} (53. Kd3 $11 Rxg2 54. Rxh6) 53... Rc1+ {[%emt 0:00:40]} (53... Rf2+ $19 54. Kg1 Ra2) 54. Ke2 {[%emt 0:00:12]} Rg1 {[%emt 0:00:42]} 55. g3 $2 {[%emt 0:00:38]} d3+ $11 {[%emt 0:00:34]} (55... Rg2+ $19 56. Kf1 Rf2+ 57. Kg1 d3 58. Rxh6 Rb2 59. Rh5+ Ke6) 56. Ke3 {[%emt 0:00:34]} Rd1 {[%emt 0:00:39]} 57. Rxh6 {[%emt 0:00:23]} d2 {[%emt 0:00:21]} 58. Kd3 {[%emt 0:00:53]} Rg1 {[%emt 0:00:38]} 59. Bxd2 {[%emt 0:00:13]} Rd1 {[%emt 0:00:03]} 60. Rh4 {[%emt 0:00:52]} Rxd2+ {[%emt 0:00:10]} 61. Ke3 {[%emt 0:00:22]} Rd4 {[%emt 0:00:18]} 62. Rh8 {[%emt 0:00:27]} Nd6 {[%emt 0:00:44]} 63. Rd8 {[%emt 0:00:43]} Nc4+ {[%emt 0:00:40]} 0-1

[Event "FRA-ch Youth U20 2018"]
[Site "Agen"]
[Date "2018.04.16"]
[Round "2"]
[White "Guigue, Marie-Celine"]
[Black "Leriche, Ines"]
[Result "0-1"]
[ECO "B12"]
[WhiteElo "1288"]
[BlackElo "1913"]
[Annotator "NA RC"]
[PlyCount "60"]
[EventDate "2018.??.??"]
[EventType "swiss"]
[EventCountry "FRA"]
[SourceTitle "playchess.com"]
[Source "ChessBase"]
[SourceQuality "1"]
[TimeControl "5400+30"]

{[%evp 15,60,-17,-14,32767,32767,32767,32767,-31,-22,-82,-77,32767,32767,-115,-100,-127,-124,-126,-127,-137,-141,32767,-141,-143,32767,-155,32767,32767,32767,32767,-287,32767,-479,-604,-609,-606,-650,-612,-612,-637,32767,-700,-704,-730,-396,-537,-633]} 1. e4 {[%emt 0:00:00]} c6 {[%emt 0:00:21]} 2. d4 {[%emt 0:01:06]} d5 {[%emt 0:00:11]} 3. e5 {[%emt 0:00:14]} c5 {[%emt 0:01:10]} 4. Nf3 {[%emt 0:01:33]} Bg4 {[%emt 0:05:50]} 5. Be2 {[%emt 0:02:03]} Nc6 {[%emt 0:02:00]} 6. c3 {[%emt 0:01:44]} e6 {[%emt 0:01:04] B12: Caro-Kann: Advance Variation} 7. Be3 {[%emt 0:07:19]} Nge7 {[%emt 0:11:08]} 8. Nbd2 {[%emt 0:11:30]} Nf5 {[%emt 0:07:48]} 9. h3 {[%emt 0:07:15]} Bxf3 {[%emt 0:02:16]} 10. Nxf3 {[%emt 0:00:25]} cxd4 $146 {[%emt 0:03:18]} ({Predecessor:} 10... Qb6 11. Qd2 cxd4 12. Bxd4 Nfxd4 13. Nxd4 Bc5 14. O-O-O Nxe5 15. Rhe1 O-O 16. f4 Nc6 17. Nxc6 Be3 {0-1 (17) Balducchi,F-Landa,K (2678) Ajaccio 2007}) 11. Bxd4 {[%emt 0:14:29]} Nfxd4 {[%emt 0:05:22]} 12. Nxd4 {[%emt 0:00:32]} Nxe5 {[%emt 0:11:39]} 13. Qa4+ {[%emt 0:02:55]} Nd7 {[%emt 0:01:50]} 14. Nf3 {[%emt 0:10:39]} Bd6 {[%emt 0:04:16]} 15. Bb5 {[%emt 0:02:13]} a6 {[%emt 0:02:05]} 16. Bxd7+ {[%emt 0:00:15]} Qxd7 {[%emt 0:00:10]} 17. Qxd7+ {[%emt 0:04:22]} Kxd7 {[%emt 0:00:03]} 18. Rd1 {[%emt 0:05:32]} Rac8 {[%emt 0:01:26]} 19. O-O {[%emt 0:02:07]} Rc7 {[%emt 0:05:01]} 20. Rd3 {[%emt 0:03:51]} h6 {[%emt 0:02:11]} 21. Rc1 {[%emt 0:04:49]} Rhc8 {[%emt 0:01:02]} 22. b3 {[%emt 0:06:49]} b5 {[%emt 0:01:51]} 23. b4 {[%emt 0:01:54] [#]} Bxb4 $1 {[%emt 0:02:34]} 24. Rd2 {[%emt 0:04:29]} Rxc3 {[%emt 0:01:13]} 25. Rxc3 {[%emt 0:01:28]} Rxc3 {[%emt 0:00:38]} 26. Ne5+ {[%emt 0:00:17]} Ke8 {[%emt 0:00:37]} 27. Re2 {[%emt 0:00:55]} Bd6 {[%emt 0:00:52]} 28. Nf3 {[%emt 0:00:55]} Rc1+ {[%emt 0:00:22]} 29. Re1 {[%emt 0:00:20]} Rxe1+ {[%emt 0:00:14]} 30. Nxe1 {[%emt 0:00:05]} Kd7 $19 {[%emt 0:00:22]} 0-1

[Event "FRA-ch Youth U20 2018"]
[Site "Agen"]
[Date "2018.04.16"]
[Round "3"]
[White "Leriche, Ines"]
[Black "Retailleau, Elise"]
[Result "1-0"]
[ECO "D35"]
[WhiteElo "1913"]
[BlackElo "1932"]
[Annotator "NA RC"]
[PlyCount "65"]
[EventDate "2018.??.??"]
[EventType "swiss"]
[EventCountry "FRA"]
[SourceTitle "playchess.com"]
[Source "ChessBase"]
[SourceQuality "1"]
[TimeControl "5400+30"]

1. d4 {[%emt 0:00:00]} d5 {[%emt 0:00:15]} 2. c4 {[%emt 0:00:00]} e6 {[%emt 0:00:14]} 3. Nc3 {[%emt 0:00:37]} Nf6 {[%emt 0:00:31]} 4. cxd5 {[%emt 0:00:25]} exd5 {[%emt 0:00:24]} 5. Bg5 {[%emt 0:00:25]} Be7 {[%emt 0:00:37]} 6. e3 {[%emt 0:00:40]} c6 {[%emt 0:00:33]} 7. Bd3 {[%emt 0:00:44]} Bg4 {[%emt 0:01:11] LiveBook: 112 Games} 8. Qc2 {[%emt 0:07:01]} Bh5 $14 {[%emt 0:04:11]} 9. h3 {[%emt 0:14:39]} Bg6 {[%emt 0:05:38]} 10. Nf3 {[%emt 0:02:34]} Nbd7 {[%emt 0:02:08]} 11. O-O {[%emt 0:03:13]} Bxd3 {[%emt 0:01:50]} 12. Qxd3 {[%emt 0:00:10]} O-O {[%emt 0:00:10]} 13. Rfc1 {[%emt 0:07:07]} Re8 {[%emt 0:05:37]} 14. Na4 {[%emt 0:16:05]} Bd6 {[%emt 0:15:11]} 15. Nd2 {[%emt 0:06:22]} h6 {[%emt 0:09:00]} 16. Bxf6 {[%emt 0:00:24]} Qxf6 {[%emt 0:03:55]} 17. Rab1 {[%emt 0:06:33]} Qe7 {[%emt 0:06:42]} 18. Nb3 {[%emt 0:04:24]} Rac8 {[%emt 0:03:48]} 19. Nbc5 {[%emt 0:03:34]} Nf6 {[%emt 0:03:42]} 20. a3 {[%emt 0:02:40]} Bb8 {[%emt 0:02:23]} 21. b4 {[%emt 0:05:39]} Qc7 {[%emt 0:02:52]} 22. g3 {[%emt 0:01:29]} a6 {[%emt 0:03:36]} 23. Nc3 {[%emt 0:04:22]} h5 {[%emt 0:00:46]} 24. h4 {[%emt 0:01:29]} Ng4 {[%emt 0:02:20]} 25. Qf5 {[%emt 0:02:16]} Nf6 {[%emt 0:03:30]} 26. a4 {[%emt 0:01:12]} Qe7 {[%emt 0:01:23]} 27. b5 {[%emt 0:02:06]} g6 {[%emt 0:03:02]} 28. Qf3 {[%emt 0:00:22]} Nd7 {[%emt 0:03:25]} 29. Nxb7 {[%emt 0:04:01]} Ne5 {[%emt 0:07:47]} 30. dxe5 {[%emt 0:00:07]} Qxb7 {[%emt 0:00:13]} 31. bxc6 {[%emt 0:00:35]} Qa7 {[%emt 0:01:00]} 32. Rb7 {[%emt 0:02:02]} Qc5 {[%emt 0:02:22]} 33. Qxf7+ {[%emt 0:00:15]} 1-0

[Event "FRA-ch Youth U20 2018"]
[Site "Agen"]
[Date "2018.04.16"]
[Round "3"]
[White "Fretel, Liza"]
[Black "Guigue, Marie-Celine"]
[Result "1-0"]
[ECO "A00"]
[WhiteElo "1849"]
[BlackElo "1288"]
[Annotator "NA RC"]
[PlyCount "41"]
[EventDate "2018.??.??"]
[EventType "swiss"]
[EventCountry "FRA"]
[SourceTitle "playchess.com"]
[Source "ChessBase"]
[SourceQuality "1"]
[TimeControl "5400+30"]

1. e3 {[%emt 0:00:00]} e5 {[%emt 0:00:17]} 2. c4 {[%emt 0:00:00]} c5 {[%emt 0:00:26]} 3. Nc3 {[%emt 0:00:00]} Nc6 {[%emt 0:00:37]} 4. Nf3 {[%emt 0:01:03]} d6 {[%emt 0:00:45]} 5. Be2 {[%emt 0:01:54]} Nf6 {[%emt 0:06:56]} (5... f5 $11) 6. O-O {[%emt 0:00:18]} Be7 {[%emt 0:00:38] LiveBook: 4 Games} 7. Qc2 {[%emt 0:01:28]} Be6 $14 {[%emt 0:02:22]} 8. a3 {[%emt 0:01:52]} Qd7 {[%emt 0:05:19]} 9. Rb1 {[%emt 0:01:39]} a6 {[%emt 0:07:27]} 10. b4 {[%emt 0:02:08]} b6 {[%emt 0:01:10]} 11. Rd1 {[%emt 0:04:50]} e4 {[%emt 0:05:35]} 12. Ng5 {[%emt 0:01:17]} Bf5 {[%emt 0:02:34]} 13. Ngxe4 {[%emt 0:01:49]} Nxe4 {[%emt 0:00:38]} 14. Nxe4 {[%emt 0:00:15]} O-O {[%emt 0:09:11]} 15. Bd3 {[%emt 0:03:23]} Bxe4 {[%emt 0:01:01]} 16. Bxe4 {[%emt 0:00:04]} Rac8 {[%emt 0:06:50]} 17. Bf5 {[%emt 0:01:38]} Qc7 {[%emt 0:00:44]} 18. Bb2 {[%emt 0:04:56]} Rce8 {[%emt 0:10:17]} 19. Bxh7+ {[%emt 0:00:13]} Kh8 {[%emt 0:00:10]} 20. Qf5 {[%emt 0:00:13]} Qc8 {[%emt 0:01:35]} 21. Qh5 {[%emt 0:00:08]} 1-0